bitfinex-derivatives/quotes_BNBF0:USTF0_20251219
["timestamp","ask_amount","ask_price","bid_price","bid_amount"]
[1766134320316,0.70250289,846.04,844.77,1.75849236]
[1766134320516,0.70250289,846.03,844.77,1.75849236]
[1766134320715,0.70250289,846.02,844.77,1.75849236]
[1766134320915,0.70250289,846.01,844.77,1.75849236]
[1766134321113,0.70250289,846.0,844.77,1.75849236]
[1766134321412,0.70250289,845.99,844.77,1.75849236]
[1766134321611,0.70250289,845.98,844.75,1.75849236]
[1766134321811,0.70250289,845.97,844.69,1.75849236]
[1766134322010,0.70250289,845.96,844.69,1.75849236]
[1766134322214,0.70250289,845.95,844.69,1.75849236]
[1766134322412,0.70250289,845.94,844.69,1.75849236]
[1766134322618,0.70250289,845.93,844.66,1.75849236]
[1766134322918,1.88607991,845.92,844.65,1.75849236]
[1766134323112,1.88607991,845.91,844.65,1.75849236]
[1766134323320,1.88607991,845.9,844.65,1.75849236]
[1766134323515,0.70250289,845.89,844.66,1.75849236]
[1766134323719,0.70250289,845.88,844.66,1.75849236]
[1766134323920,0.70250289,845.87,844.67,1.75849236]
[1766134324117,0.70250289,845.86,844.67,1.75849236]
[1766134324321,0.70250289,845.85,844.68,1.75849236]
[1766134324520,0.70250289,845.84,844.68,1.75849236]
[1766134324720,0.70250289,845.83,844.68,1.75849236]
[1766134324921,0.70250289,845.82,844.68,1.75849236]
[1766134325218,0.70250289,845.81,844.68,1.75849236]
[1766134325420,0.70250289,845.8,844.69,1.75849236]
[1766134325618,0.70250289,845.79,844.69,1.75849236]
[1766134325822,0.70250289,845.78,844.69,1.75849236]
[1766134326023,0.70250289,845.77,844.69,1.75849236]
[1766134326223,0.70250289,845.76,844.69,1.75849236]
[1766134326520,0.70250289,845.75,844.75,1.75849236]
[1766134326724,1.18149355,846.18,844.75,1.75849236]
[1766134326924,1.87688064,846.17,844.8,1.75849236]
[1766134327125,1.87688064,846.16,844.84,1.75849236]
[1766134327324,1.87688064,846.15,844.84,1.75849236]
[1766134327620,1.87688064,846.14,844.87,1.75849236]
[1766134327825,1.87688064,846.13,844.87,1.75849236]
[1766134328122,1.87688064,846.12,844.87,1.75849236]
[1766134328425,1.87688064,846.11,844.91,1.75849236]
[1766134328623,1.87688064,846.1,844.92,1.75849236]
[1766134328822,1.87688064,846.09,844.92,1.75849236]
[1766134329125,1.87688064,846.08,844.92,1.75849236]
[1766134329324,1.87688064,846.07,844.93,1.75849236]
[1766134329525,1.87688064,846.06,844.93,1.75849236]
[1766134329723,1.87688064,846.05,844.93,1.75849236]
[1766134330025,1.87688064,846.04,844.93,1.75849236]
[1766134330223,0.6934691,846.03,844.93,1.75849236]
[1766134330422,0.6934691,846.02,844.93,1.75849236]
[1766134330626,0.20578078,846.21,844.93,1.75849236]
[1766134330627,0.6934691,846.01,844.93,1.75849236]
[1766134331027,0.6934691,846.0,844.93,1.75849236]
[1766134331327,0.6934691,845.99,844.93,1.75849236]
[1766134331528,0.6934691,845.98,844.92,1.75849236]
[1766134331821,0.20578078,846.21,844.92,1.75849236]
[1766134331822,0.6934691,845.97,844.92,1.75849236]
[1766134332028,0.6934691,845.96,844.92,1.75849236]
[1766134332228,0.6934691,845.95,844.92,1.75849236]
[1766134332525,0.6934691,845.94,844.92,1.75849236]
[1766134332730,0.6934691,845.93,844.94,1.75849236]
[1766134332929,0.6934691,845.92,844.94,1.75849236]
[1766134333129,0.20578078,846.21,844.94,1.75849236]
[1766134333426,0.67516315,846.2,844.94,1.75849236]
[1766134333626,0.67516315,846.19,844.94,1.75849236]
[1766134333927,0.67516315,846.18,844.94,1.75849236]
[1766134334124,0.67516315,846.17,844.94,1.75849236]
[1766134334329,0.67516315,846.16,844.94,1.75849236]
[1766134334529,0.67516315,846.15,844.94,1.75849236]
[1766134334829,0.67516315,846.14,844.94,1.75849236]
[1766134335028,0.67516315,846.13,844.94,1.75849236]
[1766134335226,0.67516315,846.12,844.92,1.75849236]
[1766134335431,0.67516315,846.11,844.92,1.75849236]
[1766134335630,0.67516315,846.1,844.92,1.75849236]
[1766134335829,0.67516315,846.09,844.92,1.75849236]
[1766134336126,0.67516315,846.08,844.92,1.75849236]
[1766134336327,0.67516315,846.07,844.91,1.75849236]
[1766134336625,0.67516315,846.06,844.91,1.75849236]
[1766134336829,0.67516315,846.05,844.91,1.75849236]
[1766134337032,0.67516315,846.04,844.91,1.75849236]
[1766134337232,0.6751796,846.03,844.91,1.75849236]
[1766134337527,0.6751796,846.02,844.92,1.75849236]
[1766134337726,0.6751796,846.01,844.92,1.75849236]
[1766134337930,0.6751796,846.0,844.92,1.75849236]
[1766134338134,0.6751796,845.99,844.92,1.75849236]
[1766134338432,0.6751796,845.98,844.92,1.75849236]
[1766134338732,0.6751796,845.97,844.92,1.75849236]
[1766134338927,0.6751796,845.96,844.92,1.75849236]
[1766134339131,0.6751796,845.95,844.92,1.75849236]
[1766134339327,0.6751796,845.94,844.92,1.75849236]
[1766134339533,0.6751796,845.93,844.92,1.75849236]
[1766134339730,0.6751796,845.92,844.92,1.75849236]
[1766134339927,0.6751796,845.91,844.92,1.75849236]
[1766134340128,0.6751796,845.9,844.92,1.75849236]
[1766134340334,0.6751796,845.89,844.92,1.75849236]
[1766134340532,0.6751796,845.88,844.92,1.75849236]
[1766134340731,12.75810468,845.99,844.92,1.75849236]
[1766134340930,0.6753177,845.98,844.92,1.75849236]
[1766134341127,0.6753177,845.97,844.92,1.75849236]
[1766134341431,0.6753177,845.96,844.92,1.75849236]
[1766134341632,0.6753177,845.95,844.92,1.75849236]
[1766134341828,0.6753177,845.94,844.92,1.75849236]
[1766134342028,0.6753177,845.93,844.92,1.75849236]
[1766134342233,0.6753177,845.92,844.92,1.75849236]
[1766134342429,0.6753177,845.91,844.92,1.75849236]
[1766134342629,0.6753177,845.9,844.91,1.75849236]
[1766134342829,0.6753177,845.89,844.91,1.75849236]
[1766134343130,0.6753177,845.88,844.9,1.75849236]
[1766134343334,0.6753177,845.87,844.9,1.75849236]
[1766134343534,0.6753177,845.86,844.9,1.75849236]
[1766134343731,0.6753177,845.85,844.87,8.83027076]
[1766134343932,0.6753177,845.84,844.87,8.83027076]
[1766134344130,12.75810468,845.99,844.89,1.75849236]
[1766134344334,0.67538584,845.98,844.89,1.75849236]
[1766134344534,0.67538584,845.97,844.89,1.75849236]
[1766134344729,0.67538584,845.96,844.89,1.75849236]
[1766134344929,0.67538584,845.95,844.89,1.75849236]
[1766134345133,0.67538584,845.94,844.89,1.75849236]
[1766134345434,0.67538584,845.93,844.89,1.75849236]
[1766134345734,0.67538584,845.92,844.89,1.75849236]
[1766134345931,0.67538584,845.91,844.89,1.75849236]
[1766134346131,0.67538584,845.9,844.89,1.75849236]
[1766134346336,0.67538584,845.89,844.9,1.75849236]
[1766134346630,0.67538584,845.88,844.9,1.75849236]
[1766134346834,0.67538584,845.87,844.9,1.75849236]
[1766134347034,0.67538584,845.86,844.9,1.75849236]
[1766134347334,0.67538584,845.85,844.89,1.75849236]
[1766134347534,0.67538584,845.84,844.87,8.83027076]
[1766134347735,0.67538584,845.83,844.87,8.83027076]
[1766134347934,0.67538584,845.82,844.87,8.83027076]
[1766134348135,0.67538584,845.81,844.87,8.83027076]
[1766134348332,0.67538584,845.8,844.87,8.83027076]
[1766134348532,1.18338548,845.98,844.87,8.83027076]
[1766134351233,1.18149355,845.97,844.87,8.83027076]
[1766134351436,1.18338548,845.96,844.87,8.83027076]
[1766134351637,1.18338548,845.95,844.87,8.83027076]
[1766134351836,1.18338548,845.94,844.87,8.83027076]
[1766134352036,1.18338548,845.93,844.87,8.83027076]
[1766134352237,1.18149355,845.9,844.87,8.83027076]
[1766134352438,1.18338548,845.89,844.87,8.83027076]
[1766134352736,1.18149355,845.87,844.87,8.83027076]
[1766134352934,1.18338548,845.86,844.87,8.83027076]
[1766134353437,1.18338548,845.86,844.54,1.17603337]
[1766134353638,1.18149355,845.78,844.44,1.17603337]
[1766134353834,1.18149355,845.69,844.35,1.17603337]
[1766134354040,1.18149355,845.67,844.33,1.17603337]
[1766134354239,1.18149355,845.63,844.29,1.17603337]
[1766134354440,1.18338548,845.62,844.25,1.17603337]
[1766134354738,1.18338548,845.61,844.25,1.17603337]
[1766134354936,1.18338548,845.6,844.25,1.17603337]
[1766134355135,1.18338548,845.59,844.25,1.17603337]
[1766134355340,1.18338548,845.58,844.24,1.17603337]
[1766134355540,1.18338548,845.57,844.21,1.17603337]
[1766134355740,1.18338548,845.56,844.24,1.17603337]
[1766134355941,1.18338548,845.55,844.3,1.17603337]
[1766134356237,1.18338548,845.55,844.15,1.75849236]
[1766134356238,1.18149355,845.89,844.38,1.17603337]
[1766134356440,1.18412142,845.88,844.36,1.17603337]
[1766134356641,1.18412142,845.87,844.36,1.17603337]
[1766134356837,1.18412142,845.86,844.36,1.17603337]
[1766134357037,1.18412142,845.85,844.36,1.17603337]
[1766134357237,1.18412142,845.84,844.36,1.17603337]
[1766134357442,1.18412142,845.83,844.35,1.17603337]
[1766134357642,1.18412142,845.82,844.36,1.17603337]
[1766134357942,1.18412142,845.81,844.36,1.17603337]
[1766134358142,1.18412142,845.8,844.36,1.17603337]
[1766134358440,1.18412142,845.79,844.35,1.17603337]
[1766134358642,1.18412142,845.78,844.35,1.17603337]
[1766134358841,1.18412142,845.77,844.35,1.17603337]
[1766134359038,1.18412142,845.76,844.35,1.17603337]
[1766134359242,1.18412142,845.75,844.35,1.17603337]
[1766134359442,1.18412142,845.74,844.34,1.17603337]
[1766134359642,1.18412142,845.73,844.34,1.17603337]
[1766134359938,1.18412142,845.72,844.34,1.17603337]
[1766134360138,1.18412142,845.71,844.36,1.17603337]
[1766134360342,1.18412142,845.7,844.35,1.17603337]
[1766134360536,1.18149355,845.98,844.35,1.17603337]
[1766134360738,1.18407755,845.97,844.35,1.17603337]
[1766134361343,1.18407755,845.97,844.34,1.17603337]
[1766134361642,1.18407755,845.96,844.34,1.17603337]
[1766134361843,1.18407755,845.95,844.37,1.17603337]
[1766134362039,1.18407755,845.94,844.37,1.17603337]
[1766134362244,1.18407755,845.93,844.37,1.17603337]
[1766134362543,12.75810468,845.99,844.37,1.17603337]
[1766134362544,1.18407755,845.92,844.37,1.17603337]
[1766134362743,1.18407755,845.91,844.37,1.17603337]
[1766134362945,1.18407755,845.9,844.42,1.17603337]
[1766134363139,1.18407755,845.89,844.42,1.17603337]
[1766134363340,1.18407755,845.88,844.42,1.17603337]
[1766134363541,1.18407755,845.87,844.42,1.17603337]
[1766134363745,1.18407755,845.86,844.42,1.17603337]
[1766134363945,1.18407755,845.85,844.42,1.17603337]
[1766134364142,1.18407755,845.85,844.27,1.75849236]
[1766134364143,1.18407755,845.84,844.34,1.17603337]
[1766134364446,1.18407755,845.83,844.34,1.17603337]
[1766134364641,12.75810468,845.99,844.34,1.17603337]
[1766134364642,1.18407755,845.82,844.34,1.17603337]
[1766134364845,1.18407755,845.81,844.34,1.17603337]
[1766134365147,1.18407755,845.8,844.34,1.17603337]
[1766134365344,1.18407755,845.79,844.33,1.17603337]
[1766134365545,1.18407755,845.78,844.3,1.17603337]
[1766134365744,1.18407755,845.77,844.3,1.17603337]
[1766134366044,1.18407755,845.76,844.27,1.17603337]
[1766134366244,1.18407755,845.75,844.27,1.17603337]
[1766134366443,1.18407755,845.74,844.26,1.17603337]
[1766134366649,1.18407755,845.73,844.24,1.17603337]
[1766134366848,1.18407755,845.72,844.24,1.17603337]
[1766134367049,1.18407755,845.71,844.24,1.17603337]
[1766134367250,1.18407755,845.7,844.24,1.17603337]
[1766134367548,1.18407755,845.69,844.23,1.17603337]
[1766134367745,1.18407755,845.68,844.23,1.17603337]
[1766134367949,1.18407755,845.67,844.23,1.17603337]
[1766134368245,1.18407755,845.66,844.19,1.17603337]
[1766134368446,1.18149355,845.91,844.18,1.17603337]
[1766134368748,1.18424664,845.9,844.18,1.17603337]
[1766134369245,1.18424664,845.9,844.22,1.17603337]
[1766134369449,1.18424664,845.89,844.21,1.17603337]
[1766134369648,1.18424664,845.88,844.21,1.17603337]
[1766134369945,1.18424664,845.87,844.21,1.17603337]
[1766134370145,1.18424664,845.86,844.21,1.17603337]
[1766134370345,1.18424664,845.85,844.2,1.17603337]
[1766134370544,1.18424664,845.84,844.2,1.17603337]
[1766134370746,1.18424664,845.83,844.2,1.17603337]
[1766134370948,1.18424664,845.82,844.2,1.17603337]
[1766134371149,1.18424664,845.81,844.2,1.17603337]
[1766134371349,1.18424664,845.8,844.22,1.17603337]
[1766134371547,1.18424664,845.79,844.22,1.17603337]
[1766134371752,1.18424664,845.78,844.22,1.17603337]
[1766134372052,1.18424664,845.77,844.22,1.17603337]
[1766134372251,1.18424664,845.76,844.22,1.17603337]
[1766134372453,1.18424664,845.75,844.22,1.17603337]
[1766134372646,1.18424664,845.74,844.22,1.17603337]
[1766134372951,1.18424664,845.73,844.22,1.17603337]
[1766134373153,1.18424664,845.72,844.22,1.17603337]
[1766134373451,1.18424664,845.72,844.06,1.75849236]
[1766134373452,1.18424664,845.71,844.18,1.17603337]
[1766134373752,1.18424664,845.7,844.11,1.17603337]
[1766134373955,1.18424664,845.69,844.11,1.17603337]
[1766134374152,1.18424664,845.68,844.11,1.17603337]
[1766134374349,1.18424664,845.67,844.1,1.17603337]
[1766134374554,1.18424664,845.66,844.1,1.17603337]
[1766134374849,1.18424664,845.65,844.07,1.17603337]
[1766134375048,1.18424664,845.64,844.07,1.17603337]
[1766134375248,1.18424664,845.63,844.07,1.17603337]
[1766134375450,1.18424664,845.62,844.06,1.17603337]
[1766134375650,1.18424664,845.61,844.06,1.17603337]
[1766134375851,1.18424664,845.6,844.06,1.17603337]
[1766134376053,1.18149355,845.89,844.07,1.17603337]
[1766134376251,1.18430847,845.88,844.16,1.17603337]
[1766134376454,1.18430847,845.87,844.23,1.17603337]
[1766134376753,1.18430847,845.86,844.23,1.17603337]
[1766134376952,1.18430847,845.86,843.61,0.20577105]
[1766134376953,1.18430847,845.85,844.22,1.17603337]
[1766134377153,1.18430847,845.84,844.22,1.17603337]
[1766134377355,1.18430847,845.83,844.22,1.17603337]
[1766134377551,1.18430847,845.82,844.22,1.17603337]
[1766134377756,1.18430847,845.81,844.22,1.17603337]
[1766134377956,1.18430847,845.8,844.22,1.17603337]
[1766134378155,1.18430847,845.79,844.22,1.17603337]
[1766134378352,1.18430847,845.78,844.22,1.17603337]
[1766134378656,1.18430847,845.77,844.22,1.17603337]
[1766134378852,1.18430847,845.76,844.19,1.17603337]
[1766134379056,12.75810468,845.99,844.19,1.17603337]
[1766134379057,1.18430847,845.75,844.19,1.17603337]
[1766134379254,1.18430847,845.74,844.19,1.17603337]
[1766134379456,1.18430847,845.73,844.19,1.17603337]
[1766134379657,1.18430847,845.72,844.19,1.17603337]
[1766134379956,12.75810468,845.99,844.19,1.17603337]
[1766134380157,1.18414774,845.98,844.19,1.17603337]
[1766134380853,1.18149355,845.96,844.14,1.17603337]
[1766134381053,1.18414774,845.95,844.14,1.17603337]
[1766134383356,1.18414774,845.95,844.13,1.17603337]
[1766134383753,1.18414774,845.95,844.12,1.17603337]
[1766134383957,1.18414774,845.95,844.08,1.17603337]
[1766134383958,1.18149355,845.91,844.08,1.17603337]
[1766134384157,1.18414774,845.9,844.09,1.17603337]
[1766134384356,1.18414774,845.89,844.09,1.17603337]
[1766134384559,1.18414774,845.88,844.18,1.17603337]
[1766134384759,1.18414774,845.87,844.18,1.17603337]
[1766134384960,1.18414774,845.86,844.18,1.17603337]
[1766134385161,1.18414774,845.85,844.18,1.17603337]
[1766134385457,1.18414774,845.84,844.17,1.17603337]
[1766134385658,1.18414774,845.83,844.17,1.17603337]
[1766134385857,1.18414774,845.82,844.17,1.17603337]
[1766134386060,1.18414774,845.81,844.17,1.17603337]
[1766134386257,1.18414774,845.8,844.18,1.17603337]
[1766134386465,1.18414774,845.79,844.17,1.17603337]
[1766134386661,1.18414774,845.78,844.17,1.17603337]
[1766134386856,1.18414774,845.77,844.17,1.17603337]
[1766134387059,1.18414774,845.76,844.18,1.17603337]
[1766134387260,1.18414774,845.75,844.18,1.17603337]
[1766134387458,1.18414774,845.74,844.18,1.17603337]
[1766134387657,1.18414774,845.73,844.18,1.17603337]
[1766134387858,1.18414774,845.72,844.18,1.17603337]
[1766134388058,12.75810468,845.99,844.18,1.17603337]
[1766134388258,1.18414799,845.98,844.18,1.17603337]
[1766134389161,1.18414799,845.98,844.19,1.17603337]
[1766134389658,1.18414799,845.98,844.21,1.17603337]
[1766134390360,1.18414799,845.98,844.22,1.17603337]
[1766134390762,1.18414799,845.98,844.26,1.17603337]
[1766134391559,1.18414799,845.98,844.27,1.17603337]
[1766134392165,1.18414799,845.98,844.28,1.17603337]
[1766134393368,1.18414799,845.98,844.29,1.17603337]
[1766134393970,1.18414799,845.98,844.27,1.17603337]
[1766134394466,1.18414799,845.98,843.61,0.20577105]
[1766134394467,1.18414799,845.98,844.28,1.17603337]
[1766134395070,1.18414799,845.98,844.29,1.17603337]
[1766134396171,1.18414799,845.98,844.3,1.17603337]
[1766134396572,1.18414799,845.98,844.31,1.17603337]
[1766134397473,2.36564154,845.98,844.32,1.17603337]
[1766134397775,1.18414799,845.97,844.32,1.17603337]
[1766134398270,2.36564154,845.97,844.31,1.17603337]
[1766134398471,2.36564154,845.96,844.32,1.17603337]
[1766134398674,1.18414799,845.95,844.32,1.17603337]
[1766134399371,1.18414799,845.95,844.33,1.17603337]
[1766134399372,2.36564154,845.95,844.33,1.17603337]
[1766134399574,1.18414799,845.94,844.33,1.17603337]
[1766134400179,2.36564154,845.94,844.34,1.17603337]
[1766134400473,2.36564154,845.94,844.18,1.75849236]
[1766134400474,2.36564154,845.93,844.35,1.17603337]
[1766134400676,1.18414799,845.92,844.35,1.17603337]
[1766134401377,2.36564154,845.92,844.37,1.17603337]
[1766134401572,1.18414799,845.91,844.38,1.17603337]
[1766134401776,1.18414799,845.9,844.38,1.17603337]
[1766134401974,1.18414799,845.89,844.38,1.17603337]
[1766134402179,1.18414799,845.88,844.38,1.17603337]
[1766134402382,1.18414799,845.87,844.4,1.17603337]
[1766134402583,1.18414799,845.86,844.39,1.17603337]
[1766134402781,1.18414799,845.85,844.39,1.17603337]
[1766134403081,1.18414799,845.84,844.4,1.17603337]
[1766134403283,1.18414799,845.83,844.4,1.17603337]
[1766134403483,1.18414799,845.82,844.41,1.17603337]
[1766134403684,1.18414799,845.81,844.4,1.17603337]
[1766134403985,1.18414799,845.8,844.36,1.17603337]
[1766134404286,1.18414799,845.79,844.36,1.17603337]
[1766134404478,1.18149355,845.7,844.26,1.17603337]
[1766134404677,2.36564154,845.69,844.26,1.17603337]
[1766134404880,1.18414799,845.68,844.26,1.17603337]
[1766134405081,1.18149355,845.62,844.18,1.17603337]
[1766134405279,1.18414799,845.61,844.18,1.17603337]
[1766134405479,1.18149355,845.6,844.2,1.17603337]
[1766134405684,1.18414799,845.59,844.2,1.17603337]
[1766134406081,1.18414799,845.59,844.05,1.75849236]
[1766134406082,1.18414799,845.59,844.19,1.17603337]
[1766134406285,1.18414799,845.58,844.19,1.17603337]
[1766134406581,1.18414799,845.57,844.22,1.17603337]
[1766134407185,1.18414799,845.57,844.21,1.17603337]
[1766134407482,2.36564154,845.56,844.24,1.17603337]
[1766134407685,1.18414799,845.55,844.24,1.17603337]
[1766134408386,2.36564154,845.55,844.25,1.17603337]
[1766134408686,1.18414799,845.54,844.25,1.17603337]
[1766134409386,2.36564154,845.54,844.25,1.17603337]
[1766134409686,1.18414799,845.53,844.26,1.17603337]
[1766134411183,2.36564154,845.53,844.25,1.17603337]
[1766134411382,1.18414799,845.52,844.25,1.17603337]
[1766134411882,2.36564154,845.52,844.25,1.17603337]
[1766134412082,1.18414799,845.51,844.25,1.17603337]
[1766134412382,1.18414799,845.51,844.24,1.17603337]
[1766134413086,1.18414799,845.51,844.34,1.17603337]
[1766134413383,1.18414799,845.51,843.61,0.20577105]
[1766134413384,1.18414799,845.5,844.39,1.17603337]
[1766134413583,1.18414799,845.49,844.46,1.17603337]
[1766134413782,1.18414799,845.48,844.46,1.17603337]
[1766134413983,1.18414799,845.47,844.46,1.17603337]
[1766134414184,1.18414799,845.46,844.46,1.17603337]
[1766134414383,1.18149355,845.74,844.47,1.17603337]
[1766134414681,1.18408316,845.73,844.53,1.17603337]
[1766134414886,1.18408316,845.72,844.53,1.17603337]
[1766134415185,1.18408316,845.71,844.53,1.17603337]
[1766134415384,1.18408316,845.7,844.57,1.17603337]
[1766134415586,1.18408316,845.69,844.57,1.17603337]
[1766134415784,1.18408316,845.68,844.57,1.17603337]
[1766134415983,1.18408316,845.67,844.57,1.17603337]
[1766134416184,1.18408316,845.66,844.57,1.17603337]
[1766134416383,1.18408316,845.65,844.57,1.17603337]
[1766134416584,1.18408316,845.64,844.57,1.17603337]
[1766134416787,1.18408316,845.63,844.64,1.17603337]
[1766134416988,1.18149355,845.91,844.64,1.17603337]
[1766134417188,1.18393508,845.9,844.63,1.17603337]
[1766134417384,0.20587087,845.44,844.63,1.17603337]
[1766134417585,1.18393508,845.88,844.63,1.17603337]
[1766134417888,1.18393508,845.87,844.63,1.17603337]
[1766134418088,1.18393508,845.86,844.63,1.17603337]
[1766134418288,1.18393508,845.85,844.63,1.17603337]
[1766134418488,1.18393508,845.84,844.63,1.17603337]
[1766134418692,1.18393508,845.83,844.63,1.17603337]
[1766134418885,0.20585808,845.55,844.63,1.17603337]
[1766134419486,0.20585808,845.55,844.62,1.17603337]
[1766134420086,0.20585808,845.55,844.63,1.17603337]
[1766134420591,0.20585808,845.55,844.64,1.17603337]
[1766134420785,0.20585808,845.55,843.93,0.20585382]
[1766134420786,0.20585808,845.55,844.7,1.17603337]
[1766134421190,0.20585808,845.55,844.69,1.17603337]
[1766134423091,0.20585808,845.55,844.68,1.17603337]
[1766134425193,0.20585808,845.55,844.67,1.17603337]
[1766134427192,0.20585808,845.55,844.66,1.17603337]
[1766134429296,0.20585808,845.55,844.65,1.17603337]
[1766134432197,0.20585808,845.55,844.64,1.17603337]
[1766134432397,0.20585808,845.55,844.62,1.17603337]
[1766134433101,0.20585808,845.55,844.61,1.17603337]
[1766134433496,0.20585808,845.55,844.62,1.17603337]
[1766134434596,0.20585808,845.55,844.6,1.17603337]
[1766134435604,0.20585808,845.55,844.59,1.17603337]
[1766134438904,0.20585808,845.55,844.6,1.17603337]
[1766134439409,0.20585808,845.55,844.59,1.17603337]
[1766134440810,0.20585808,845.55,844.6,1.17603337]
[1766134441807,0.20585808,845.55,844.68,1.17603337]
[1766134442209,0.20585808,845.55,844.67,1.17603337]
[1766134443011,0.20585808,845.55,844.6,1.17603337]
[1766134444309,0.20585808,845.55,844.55,1.17603337]
[1766134451510,0.20585808,845.55,844.5,1.17603337]
[1766134452014,0.20585808,845.55,844.47,1.17603337]
[1766134452413,0.20585808,845.55,843.93,0.20585382]
[1766134452414,0.20585808,845.55,844.54,1.17603337]
[1766134453410,0.20585808,845.55,844.58,1.17603337]
[1766134454409,0.20585808,845.55,844.59,1.17603337]
[1766134455812,0.20585808,845.55,844.58,1.17603337]
[1766134456010,0.20585808,845.55,844.64,1.17603337]
[1766134457114,0.20585808,845.55,844.63,1.17603337]
[1766134457610,0.20585808,845.55,844.65,1.17603337]
[1766134463811,0.20585808,845.55,844.61,1.17603337]
[1766134465115,0.20585808,845.55,844.62,1.17603337]
[1766134466216,0.20585808,845.55,844.63,1.17603337]
[1766134467120,0.20585808,845.55,844.64,1.17603337]
[1766134468216,0.20585808,845.55,844.66,1.17603337]
[1766134468921,0.20585808,845.55,844.58,1.17603337]
[1766134469118,0.20585808,845.55,844.56,1.17603337]
[1766134469619,0.20585808,845.55,844.52,1.17603337]
[1766134470020,0.20585808,845.55,844.5,1.17603337]
[1766134470223,0.20585808,845.55,844.52,1.17603337]
[1766134470416,0.20585808,845.55,844.48,1.17603337]
[1766134471227,0.20585808,845.55,844.5,1.17603337]
[1766134471424,0.20585808,845.55,844.54,1.17603337]
[1766134471622,0.20585808,845.55,844.54,9.37156857]
[1766134472121,0.20585808,845.55,844.58,1.17603337]
[1766134472324,0.20585808,845.55,844.61,1.17603337]
[1766134472827,0.20585808,845.55,844.65,1.17603337]
[1766134473123,0.20585808,845.55,844.67,1.17603337]
[1766134473323,0.20585808,845.55,844.69,1.17603337]
[1766134473726,0.20585808,845.55,844.71,1.17603337]
[1766134474226,0.20585808,845.55,844.72,1.17603337]
[1766134474927,0.20585808,845.55,844.54,8.1955352]
[1766134474928,0.20585808,845.55,844.75,1.17603337]
[1766134477028,0.20585808,845.55,844.79,1.17603337]
[1766134477528,0.20585808,845.55,844.82,1.17603337]
[1766134478828,2.95373388,846.75,844.54,8.1955352]
[1766134478829,1.18385535,845.83,844.92,1.17603337]
[1766134479025,0.2058106,845.74,844.92,1.17603337]
[1766134479330,0.2058106,845.74,844.93,1.17603337]
[1766134480029,0.2058106,845.74,844.97,1.17603337]
[1766134480230,0.2058106,845.74,844.96,1.17603337]
[1766134481329,0.2058106,845.74,844.95,1.17603337]
[1766134482330,0.2058106,845.74,844.94,1.17603337]
[1766134483131,0.2058106,845.74,844.93,1.17603337]
[1766134485333,0.2058106,845.74,844.92,1.17603337]
[1766134486230,0.2058106,845.74,844.91,1.17603337]
[1766134488233,0.2058106,845.74,844.9,1.17603337]
[1766134489236,0.2058106,845.74,844.93,1.17603337]
[1766134490235,0.2058106,845.74,844.88,1.17603337]
[1766134491836,0.2058106,845.74,844.89,1.17603337]
[1766134492334,0.2058106,845.74,844.88,1.17603337]
[1766134493538,0.2058106,845.74,844.92,1.17603337]
[1766134495436,0.2058106,845.74,844.91,1.17603337]
[1766134496736,0.2058106,845.74,844.95,1.17603337]
[1766134496936,11.69451319,845.83,844.95,1.17603337]
[1766134497140,11.90030797,845.83,844.94,1.17603337]
[1766134499238,11.90030797,845.83,844.93,1.17603337]
[1766134499943,11.90030797,845.83,844.98,1.17603337]
[1766134501644,11.90030797,845.83,844.99,1.17603337]
[1766134502145,11.90030797,845.83,844.98,1.17603337]
[1766134502340,11.90030797,845.83,844.89,1.17603337]
[1766134502543,11.90030797,845.83,844.88,1.17603337]
[1766134502744,11.90030797,845.83,844.87,1.17603337]
[1766134502940,11.90030797,845.83,844.79,1.17603337]
[1766134503443,11.90030797,845.83,844.54,8.1955352]
[1766134503444,11.90030797,845.83,844.78,1.17603337]
[1766134505143,11.90030797,845.83,844.88,1.17603337]
[1766134507044,11.90030797,845.83,844.85,1.17603337]
[1766134509745,11.90030797,845.83,844.89,1.17603337]
[1766134510545,11.90030797,845.83,844.91,1.17603337]
[1766134511946,11.90030797,845.83,844.96,1.17603337]
[1766134514544,11.90030797,845.83,844.9,1.17603337]
[1766134515647,11.90030797,845.83,844.91,1.17603337]
[1766134517247,11.90030797,845.83,844.87,1.17603337]
[1766134518547,11.90030797,845.83,844.85,1.17603337]
[1766134518847,11.90030797,845.83,844.8,1.17603337]
[1766134519251,11.90030797,845.83,844.83,1.17603337]
[1766134519751,11.90030797,845.83,844.84,1.17603337]
[1766134520252,11.90030797,845.83,844.85,1.17603337]
[1766134521354,11.90030797,845.83,844.86,1.17603337]
[1766134526157,11.90030797,845.83,844.87,1.17603337]
[1766134526361,11.90030797,845.83,844.84,1.17603337]
[1766134526561,11.90030797,845.83,844.77,1.17603337]
[1766134527163,11.90030797,845.83,844.78,1.17603337]
[1766134529361,11.90030797,845.83,844.79,1.17603337]
[1766134530061,1.18374378,845.82,844.73,1.17603337]
[1766134530258,1.18374378,845.82,844.74,1.17603337]
[1766134531359,1.18374378,845.82,844.76,1.17603337]
[1766134532263,1.18374378,845.82,844.72,1.17603337]
[1766134532463,1.18374378,845.82,844.65,1.17603337]
[1766134532862,1.18374378,845.82,844.61,1.17603337]
[1766134533265,1.18374378,845.82,844.58,1.17603337]
[1766134534162,1.18374378,845.82,844.57,1.17603337]